Cogmind - Beta 15 @@@ ROGUE MODE // 2025.10.14 @ 22:33:07 Player: leek.801 Result: Destroyed by G-47 Trooper with Particle Gun Performance ------------- Evolutions (3) 1500 Regions Visited (4) 800 Robots Destroyed (41) 205 Value Destroyed (1152) 1152 Prototype IDs (1) 20 Alien Tech Used (0) 0 Bonus (0) 0 TOTAL SCORE: 3677 Bonus ------- None Cogmind --------- Core Integrity 0/700 Matter 285/300 Energy 69/100 System Corruption 0% Temperature Cool (28) Movement Core (50) Location -7/Factory Parts ------- > --- POWER (1) -------- (None) > --- PROPULSION (5) --- (None) > --- UTILITY (4) ------ (None) > --- WEAPON (3) ------- Particle Gun > --- INVENTORY (5) ---- Seismic Detector Peak State ------------ > --- POWER ------------ Improved Ion Engine > --- PROPULSION ------- Wheel Wheel Compact Wheel > --- UTILITY ---------- Medium Storage Unit High-capacity Matter Pod Visual Processing Unit Propulsion Shielding > --- WEAPON ----------- Improved Medium Laser Heavy Assault Rifle High-powered Shotgun > --- INVENTORY -------- Improved Ion Engine Aluminum Leg Aluminum Leg Improved Heat Sink Seismic Detector Medium Laser Heavy Assault Rifle Shotgun Light Cannon Hammer [Rating: 19] Favorites ----------- Power Improved Ion Engine Engine Improved Ion Engine Power Core Light Nuclear Core Propulsion Wheel Leg Aluminum Leg Wheel Wheel Flight Unit VTOL Module Utility Medium Storage Unit Device Heat Sink Storage Medium Storage Unit Processor Visual Processing Unit Protection Propulsion Shielding Weapon Light Assault Rifle Energy Gun Improved Medium Laser Energy Cannon Beam Cannon Ballistic Gun Light Assault Rifle Ballistic Cannon Light Cannon Impact Weapon Great Maul Build | -11 -10 -9 -8 -7 ------- Run | Yrd Mat Mat Mat Fac Slots Evolved 6 | . . 2 2 2 Power . | . . . . . Propulsion 3 | . . . 1 2 Utility 2 | . . 1 1 . Weapon 1 | . . 1 . . Parts Attached 48 | 6 13 10 15 4 Power 5 | 1 1 1 1 1 Engine 4 | 1 1 1 1 . Core 1 | . . . . 1 Reactor . | . . . . . Propulsion 13 | 2 4 2 3 2 Treads . | . . . . . Leg 3 | . 2 . 1 . Wheel 9 | 2 2 2 2 1 Hover . | . . . . . Flight 1 | . . . . 1 Utility 10 | 1 4 3 2 . Device 3 | . 1 1 1 . Storage 3 | 1 2 . . . Processor 1 | . . 1 . . Hackware . | . . . . . Protection 3 | . 1 1 1 . Artifact . | . . . . . Weapon 20 | 2 4 4 9 1 Energy Gun 7 | 1 1 1 3 1 Energy Cannon 1 | . 1 . . . Ballistic Gun 10 | 1 2 2 5 . Ballistic Cannon 1 | . . 1 . . Launcher . | . . . . . Special Weapon . | . . . . . Impact Weapon 1 | . . . 1 . Slashing Weapon . | . . . . . Piercing Weapon . | . . . . . Special Melee Weapon . | . . . . . Unidentified Prototypes 1 | . . 1 . . Parts Lost 26 | . 2 . 20 4 Power 2 | . . . 1 1 Propulsion 11 | . 1 . 8 2 Utility 3 | . 1 . 2 . Weapon 10 | . . . 9 1 Highest Loss Streak 10 | . 2 . 10 3 To Critical Strikes . | . . . . . Average Backups 7 | 1 6 8 8 3 Power . | . 1 1 . . Propulsion 1 | . 1 2 1 . Utility 1 | . 1 2 1 1 Weapon 3 | . 2 3 4 . Tool/Special . | . . . . . Unused Backups 3 | . . 1 1 1 Power 1 | . . 1 . . Propulsion . | . . . . . Utility 1 | . . . . 1 Weapon 1 | . . . 1 . Tool/Special . | . . . . . Average Slot Usage (%) 84 | . 94 99 79 9 Engine 9 | . 14 11 7 . Leg 5 | . 7 10 2 . Wheel 15 | . 18 11 18 . Device 2 | . 5 3 . . Storage 12 | . 15 11 14 . Processor 3 | . . 2 8 . Protection 7 | . 4 15 6 . Energy Gun 4 | . 6 2 6 . Energy Cannon 4 | . 7 8 . . Ballistic Gun 13 | . 13 12 16 . Ballistic Cannon 2 | . . 9 . . Peak Build Rating 19 | 6 7 16 19 8 Average Rating 10 | 4 6 11 14 3 On Entrance 6 | . 6 7 16 3 Naked Turns 109 | . . . 85 24 Heaviest Build 33 | 13 20 28 33 9 Greatest Support 36 | 20 20 26 36 10 Greatest Overweight (x) 4 | 3 1 1 4 2 Average Overweight (x) . | . . . . . Largest Inventory Capacity 10 | 8 10 10 10 5 Average Capacity 9 | 7 8 10 9 5 Most Carried 10 | 4 8 10 10 4 Average Carried 7 | 1 6 8 8 3 Final Capacity 10 | 8 10 10 5 5 Final Carried 10 | 4 8 10 4 1 Class Distribution -------------------- 35% | Scavenger-Tank 35% | Mutant 15% | Tank 7% | Scavenger-Mutant 3% | Skirmisher Dominant Class ---------------- Mutant | -10/Materials Tank | -9/Materials Scavenger-Tank | -8/Materials Mutant | -7/Factory Resources | -11 -10 -9 -8 -7 ----------- Run | Yrd Mat Mat Mat Fac Matter Collected 1309 | 186 413 216 474 20 Remotely . | . . . . . Salvage Created 1340 | . 339 253 685 63 Parts 93 | . 31 13 47 2 Haulers Intercepted . | . . . . . Recyclers Shooed . | . . . . . Parts Field Recycled . | . . . . . Retrieved Matter . | . . . . . Parts Self-Destructed . | . . . . . Prevented . | . . . . . Kills | -11 -10 -9 -8 -7 ------- Run | Yrd Mat Mat Mat Fac Combat Hostiles Destroyed 32 | . 10 3 16 3 Melee 1 | . . . . 1 Guns 25 | . 8 1 15 1 Cannons 5 | . 2 2 1 . Classes Destroyed 9 | . 4 3 2 . Worker 2 | . 1 . 1 . Builder 2 | . . 1 1 . Tunneler 1 | . . . 1 . Recycler 1 | . . 1 . . Watcher 3 | . 2 1 . . Swarmer 12 | . 6 . 3 3 Grunt 13 | . 4 . 9 . Brawler 1 | . . . 1 . Sentry 6 | . . 3 3 . Best Kill Streak 5 | . 5 2 5 1 Combat Bots Only 4 | . 3 1 4 1 Max Kills in Single Turn 1 | . 1 1 1 1 Gunslinging . | . . . . . Exploded . | . . . . . Melee 1 | . . . . 1 Uniques/NPCs Destroyed . | . . . . . Combat | -11 -10 -9 -8 -7 -------- Run | Yrd Mat Mat Mat Fac Hostile Shots Fired 404 | . 63 16 193 132 Missed 133 | . 20 5 56 52 Hits 271 | . 43 11 137 80 Melee 2 | . . . 2 . Projectile 269 | . 43 11 135 80 Critical Strikes 12 | . 1 . 10 1 Damage Taken 4017 | . 475 274 2303 965 Core 1425 | . 151 32 541 701 Absorbed by Shields . | . . . . . Redirected to Shielding 33 | . . 18 15 . Core Remaining (%) 58 | 100 39 92 1 . Volleys Fired 115 | . 36 13 59 7 Largest 3 | . 2 3 3 1 Hottest 129 | . 80 110 129 65 Shots Fired 275 | . 72 39 157 7 Gun 241 | . 65 15 154 7 Cannon 34 | . 7 24 3 . Launcher . | . . . . . Special . | . . . . . Kinetic 180 | . 36 26 118 . Thermal 95 | . 36 13 39 7 Explosive . | . . . . . Electromagnetic . | . . . . . Robot Hit Streak 8 | . 7 8 8 2 Robot Miss Streak 6 | . 3 5 6 2 Penetration Max . | . . . . . Secondary Targets 8 | . 1 . 7 . Max Gunslinging Chain 1 | . 1 . 1 . Shots Hit Robots 172 | . 45 29 92 6 Core Hits 76 | . 20 9 45 2 Critical Kills 1 | . . . . 1 Critical Parts Destroyed 1 | . . . 1 . Critical Strikes 6 | . . 1 4 1 Burn 3 | . . . 3 . Destroy 1 | . . . 1 . Blast 1 | . . 1 . . Smash 1 | . . . . 1 Melee Attacks 4 | . . . 1 3 Impact 4 | . . . 1 3 Slashing . | . . . . . Piercing . | . . . . . Sneak Attacks . | . . . . . Combat Hostiles . | . . . . . Follow-up Attacks . | . . . . . Damage Inflicted 2665 | . 520 413 1532 200 Guns 2055 | . 414 91 1484 66 Cannons 454 | . 106 309 39 . Explosions . | . . . . . Melee 134 | . . . . 134 Ramming 22 | . . 13 9 . Kinetic 1630 | . 205 277 1148 . Thermal 879 | . 315 123 375 66 Explosive . | . . . . . Electromagnetic . | . . . . . Impact 134 | . . . . 134 Slashing . | . . . . . Piercing . | . . . . . Highest Corruption 3 | . . . 3 . Average Corruption 3 | . . . 3 . Corruption Purged . | . . . . . Corruption Blocked . | . . . . . Effects 6 | . . . 6 . Message Errors 1 | . . . 1 . Matter Fused 1 | . . . 1 . Heat Flow Errors 1 | . . . 1 . Data Loss (minor) 1 | . . . 1 . Weapon Failures 2 | . . . 2 . Overload Shots . | . . . . . Overflow Damage 23 | . 16 . . 7 Projectiles 16 | . 16 . . . Explosions . | . . . . . Melee 7 | . . . . 7 Knockbacks 1 | . . . . 1 Impact 1 | . . . . 1 Kinetic . | . . . . . Secondary . | . . . . . Self-Inflicted Damage 10 | . . 6 4 . Shots . | . . . . . Rammed 3 | . . 1 2 . Targets Rammed 3 | . . 1 2 . Kicked . | . . . . . Crushed . | . . . . . Highest Temperature 263 | . 180 117 263 19 Average Temperature 65 | . 53 50 74 9 Received Heat Transfer 1626 | . 204 63 1161 198 Effects 3 | . . . 3 . Interference 3 | . . . 3 . Siege Activations . | . . . . . Martial Activations . | . . . . . Shielding Activations . | . . . . . Robots Disrupted . | . . . . . Combat Hostiles . | . . . . . Robots Corrupted 1 | . . . . 1 Combat Hostiles 1 | . . . . 1 Parts Fried 1 | . . . . 1 Impact Corruptions 1 | . . . . 1 Robots Melted . | . . . . . Combat Hostiles . | . . . . . Parts Melted 1 | . . . 1 . Heat Transferred 2251 | . 697 259 1147 148 Parts Sabotaged . | . . . . . Parts Stolen . | . . . . . Parts Stripped . | . . . . . Power Chain Reactions . | . . . . . Alert | -11 -10 -9 -8 -7 ------- Run | Yrd Mat Mat Mat Fac Maximum Alert Level . | . . . . . Low Security (%) 100 | 100 100 100 100 100 Level 1 . | . . . . . Level 2 . | . . . . . Level 3 . | . . . . . Level 4 . | . . . . . Level 5 . | . . . . . High Security . | . . . . . Max Security . | . . . . . Peak Influence 163 | . 99 52 163 82 Initial 67 | . . . . 67 Average 30 | . 37 9 40 46 Influence Increases 1107 | . 264 133 595 115 Destroy 0b10 Robot/C 640 | . 200 60 320 60 Destroy 0b10 Robot/NC 45 | . 15 15 15 . Destroy Leader 146 | . 44 32 60 10 Successful Hack 19 | . 5 11 3 . Disable Machine 45 | . . 15 30 . Destroy Structure 2 | . . . 2 . Lose Combat Pursuer 210 | . . . 165 45 Influence Decreases 1035 | . 264 133 445 193 Entered New Map 83 | . . . . 83 Time Decay 707 | . 244 133 260 70 Lost Part 245 | . 20 . 185 40 Squads Dispatched 6 | . 2 1 2 1 Investigation 1 | . . 1 . . Extermination . | . . . . . Reinforcement 5 | . 2 . 2 1 Assault . | . . . . . Garrison . | . . . . . Intercept . | . . . . . Searches Triggered . | . . . . . Construction Impeded . | . . . . . Haulers Reinforced . | . . . . . Active Scanning Responses . | . . . . . Cargo Convoy Interrupts . | . . . . . Stealth | -11 -10 -9 -8 -7 --------- Run | Yrd Mat Mat Mat Fac Distress Signals 5 | . . 1 4 . Communications Jammed . | . . . . . Distress Signals . | . . . . . Times Spotted 73 | . 17 6 37 13 Peak Tracking Total 8 | . 4 3 8 8 Tactical Retreats 6 | . . . 5 1 Traps | -11 -10 -9 -8 -7 ------- Run | Yrd Mat Mat Mat Fac Traps Triggered 5 | . 1 4 . . Indirectly . | . . . . . Trap Hack Attempts . | . . . . . Triggered . | . . . . . Disarmed . | . . . . . Reprogrammed . | . . . . . Reused . | . . . . . Traps Extracted . | . . . . . Installed . | . . . . . Triggered . | . . . . . Machines | -11 -10 -9 -8 -7 ---------- Run | Yrd Mat Mat Mat Fac Machines Disabled 3 | . . 1 2 . Max in Single Turn 1 | . . 1 1 . Machines Repaired . | . . . . . Machines Dismantled . | . . . . . Machines Sabotaged . | . . . . . Overloaded Fab Kills . | . . . . . Hacking | -11 -10 -9 -8 -7 --------- Run | Yrd Mat Mat Mat Fac Machines Accessed 9 | . 2 4 3 . Terminals 8 | . 2 3 3 . Fabricators . | . . . . . Repair Stations 1 | . . 1 . . Recycling Units . | . . . . . Scanalyzers . | . . . . . Garrison Access . | . . . . . Total Hacks 25 | . 4 14 7 . Successful 13 | . 1 8 4 . Failed 12 | . 3 6 3 . Catastrophic 1 | . . 1 . . Database Lockouts . | . . . . . Manual 19 | . 4 8 7 . Terminals 22 | . 4 11 7 . Fabricators . | . . . . . Repair Stations 3 | . . 3 . . Recycling Units . | . . . . . Scanalyzers . | . . . . . Garrison Access . | . . . . . Terminal Hacks 2 | . . 2 . . Record 1 | . . 1 . . Terminal Index 1 | . . 1 . . Fabricator Hacks . | . . . . . Repair Station Hacks 1 | . . 1 . . Scan Component 1 | . . 1 . . Recycling Unit Hacks . | . . . . . Scanalyzer . | . . . . . Garrison Access Hacks . | . . . . . Unauthorized Hacks 9 | . 1 5 3 . Terminals 9 | . 1 5 3 . Botnet 5 | . 1 2 2 . Skim 4 | . . 3 1 . Fabricators . | . . . . . Repair Stations . | . . . . . Recycling Units . | . . . . . Scanalyzers . | . . . . . Garrison Access . | . . . . . Data Cores Recovered . | . . . . . Used . | . . . . . Hacking Detections 9 | . 2 4 3 . Full Trace Events 1 | . . 1 . . Feedback Events . | . . . . . Feedback Blocked . | . . . . . Robot Schematics Acquired . | . . . . . Robots Built . | . . . . . Authchips . | . . . . . Time . | . . . . . Total Robot Build Rating . | . . . . . Part Schematics Acquired . | . . . . . Parts Built . | . . . . . Authchips . | . . . . . Time . | . . . . . Total Part Build Rating . | . . . . . Parts Repaired . | . . . . . Time . | . . . . . Parts Recycled . | . . . . . Recycled Matter . | . . . . . Retrieved Matter . | . . . . . Retrieved Components . | . . . . . Parts Scanalyzed . | . . . . . Part Schematics Acquired . | . . . . . Parts Damaged . | . . . . . Bothacking | -11 -10 -9 -8 -7 ------------ Run | Yrd Mat Mat Mat Fac Used RIF Installer . | . . . . . Robots Hacked . | . . . . . Non-combat . | . . . . . Combat . | . . . . . Robot Hacks Applied . | . . . . . Relay Couplers Released . | . . . . . Fabnet Peak Effective % . | . . . . . Robots Rewired . | . . . . . Allies Hacked . | . . . . . Hacks Repelled . | . . . . . Allies | -11 -10 -9 -8 -7 -------- Run | Yrd Mat Mat Mat Fac Total Allies . | . . . . . Largest Group . | . . . . . Highest-Rated Group . | . . . . . Highest-Rated Ally . | . . . . . Total Orders . | . . . . . Ally Attacks . | . . . . . Total Damage . | . . . . . Kills . | . . . . . Allies Corrupted . | . . . . . Allies Melted . | . . . . . Intel | -11 -10 -9 -8 -7 ------- Run | Yrd Mat Mat Mat Fac Active Infowar (turns) 812 | . . 122 690 . Optics 812 | . . 122 690 . Robot Analysis Total . | . . . . . Derelict Logs Recovered . | . . . . . Drone Launches . | . . . . . Drone Recoveries . | . . . . . Exploration | -11 -10 -9 -8 -7 ------------- Run | Yrd Mat Mat Mat Fac Turns Passed 2340 | 59 684 643 800 154 Spaces Moved 1774 | 53 539 426 623 133 Core 271 | 8 . . 141 122 Treads . | . . . . . Legs 319 | . 160 134 25 . Wheels 1174 | 45 379 292 457 1 Hover . | . . . . . Flight 10 | . . . . 10 Fastest Speed 50 | 50 80 90 50 50 Average Speed 98 | 86 93 125 87 93 Slowest Speed 260 | 200 120 190 260 195 Overloaded Moves . | . . . . . Propulsion Burnouts . | . . . . . Robots Hopped . | . . . . . Potential Cave-ins . | . . . . . Cave-ins Triggered . | . . . . . Exploration Rate (%) 27 | 4 68 29 30 5 Regions Visited 4 Branch Regions . Pre-discovered Areas . | . . . . . Known Exits Taken . | . . . . . Unknown Exits Taken 4 | 1 1 1 1 . Scrap Searched . | . . . . . Spaces Dug 1 | . . . 1 . Terrain Destroyed 1 | . . . 1 . Melee 1 | . . . 1 . Projectile . | . . . . . AOE . | . . . . . Terrain Rammed . | . . . . . Walls Destroyed . | . . . . . Machines Disabled . | . . . . . Actions | -11 -10 -9 -8 -7 --------- Run | Yrd Mat Mat Mat Fac Total 2120 | 62 649 504 756 149 Wait 127 | . 47 40 38 2 Move 1770 | 52 538 425 622 133 Hop . | . . . . . Pick Up 20 | 4 5 5 6 . Fast Attach 25 | 6 7 3 8 1 Attach 19 | . 1 2 13 3 Detach 3 | . 1 1 1 . Swap 16 | . 5 9 2 . Drop 18 | . 9 5 4 . Fire 115 | . 36 13 59 7 Melee 4 | . . . 1 3 Ram 3 | . . 1 2 . Kick . | . . . . . Crush . | . . . . . Escape Stasis . | . . . . . Rewire . | . . . . . Trap . | . . . . . Miscellaneous . | . . . . . Route ------- -11/Scrapyard -10/Materials (discovered 3 exits: *Mat x2 / [*Min]) -9/Materials -8/Materials -7/Factory History --------- Turn | Location | Event 5 | -11/Scrapyard | Discovered new exit (range 16) 60 | -11/Scrapyard | Entered Materials 211 | -10/Materials | Discovered new exit (range 15) 371 | -10/Materials | Discovered new exit (range 9) 469 | -10/Materials | Core integrity fell below 50% 665 | -10/Materials | Discovered new exit (range 15) 744 | -10/Materials | Entered another Materials area 744 | -9/Materials | Evolved 2 slots: Utility x1, Weapon x1 1310 | -9/Materials | Discovered new exit (range 18) 1387 | -9/Materials | Entered another Materials area 1387 | -8/Materials | Evolved 2 slots: Propulsion x1, Utility x1 1474 | -8/Materials | Discovered new exit (range 17) 1895 | -8/Materials | Build established: Scavenger-Tank 1977 | -8/Materials | Core integrity fell below 50% 2009 | -8/Materials | Lost 10 parts (1p3n2u4w) 2095 | -8/Materials | Released all parts (6) 2096 | -8/Materials | Core integrity fell below 20% 2115 | -8/Materials | Lost 5 parts (2n3w) 2187 | -8/Materials | Entered Factory 2187 | -7/Factory | Evolved 2 slots: Propulsion x2 2304 | -7/Factory | Core integrity fell below 50% 2319 | -7/Factory | Core integrity fell below 20% 2332 | -7/Factory | Lost 3 parts (1p1n1w) 2341 | -7/Factory | Destroyed by G-47 Trooper with Particle Gun Last Messages --------------- 02254_ ALERT: Hostiles spotted, dispatching reinforcements to Terminal F013. 02254_ O-24 Administrator locks terminal. 02255_ S-27 Virus knocked back. 02258_ S-27 Virus suffers critical hit (Smash). 02258_ S-27 Virus destroyed. 02263_ Acquired 20 matter. 02267_ Acquired VTOL Module. 02288_ VTOL Module destroyed. 02290_ Lgt. Nuclear Core destroyed. 02298_ K-01 Serf destroyed. 02300_ Destroyed Lgt. Nuclear Core. 02300_ S-27 Virus system corrupted by crushing effect. 02301_ S-27 Virus system terminally corrupted. 02301_ Autogun fried. 02301_ Great Maul destroyed. 02306_ Critical hit (Burn: +37). 02333_ S-27 Virus destroyed. 02336_ Wheel destroyed. Map ----- +----------------------------------------------------+ | ?????????????????????????????????????????????????? | | ?????????????????????????????????????????????????? | | ?????????????????????????????????????????????????? | | ?????????????????????????????????????????????????? | | ?????????????????????????????????????????????????? | | ?????????????????????????????????????????????????? | | ?????????????????????????????????????????????????? | | ?????????????????????????????????????????????????? | | ?????????????????????????????????????????????????? | | ?????????????????????????????????????????????????? | | ?????????????????????????????????????????????????? | | ?????????????????????????????????????????????????? | | ?????????????????????????????????????????????????? | | ?????????????????????????????????????????????????? | | ?????????????????????????????????????????????????? | | ?????????????????????????????????????????????????? | | ?????????????????????????????????????????????????? | | ???????????????????#############?????????????????? | | ???????????????????# """"" #?????????????????? | | ???????????????????# ""T"" #?????????????????? | | ???????????????????# """ #?????????????????? | | ???????????????????# """ #?????????????????? | | ???????????????????# ! """ #?????????????????? | | ???????????????????# #?????????????????? | | ???????????????????# #?????????????????? | | ???????????????????######@######?????????????????? | | ???????????????????????# #?????????????????????? | | ????????????????#####??# ##########????????????? | | ????????????????? ??# # ! #????????????? | | ???????????????? ?# # """ #????????????? | | ???????????????# """?# # """ #????????????? | | ???????????????# """ # # """ #????????????? | | ???????? ??????# ! """ #%* # #????????????? | | ???????? ?????# + + """ #????????????? | | ????????! ?????# !! # # """ #????????????? | | ???????? ?????# !! # # """ #????????????? | | ???????? ?????# ?#gsg# #????????????? | | ########/##????# ?# ######/##?????????????? | | ! ! ????# ??#g #?????? ?????????????? | | ?????######??# #??????? ?????????????? | | ????????????# #?????????????????????? | | """ ????????????# #?????????????????????? | | """ #?????????????# #?????????????????????? | | """ #?????????????# #?????????????????????? | | ############### #######???????????????? | | % ????????? | | T" ????????? | | "" % ????????? | | ### ?????????? | | ##+########?? ""?????????? | +----------------------------------------------------+ Best States ------------- Heat Dissipation 45 Energy Generation 14 Energy Capacity 265 Matter Stores 500 Matter Capacity 500 Sight Range 18 Terrain Scan Density 10 Armor Coverage 150 Propulsion Shielding 33 Evasion (%) 55 Item Schematics ----------------- None Robot Schematics ------------------ None Fabricated ------------ Nothing Repaired ---------- Nothing Alien Tech Used ----------------- None Achievements -------------- None Challenges ------------ None Game ------ Seed LauncherSupercompositeCutter Manual? 0 Play Time 01:02:18 Cumulative 120.1 hours Start 2025.10.14 @ 11:40:08 End 2025.10.14 @ 22:33:07 Sessions 13 Manual Loads 0 Difficulty Rogue Special Mode None Game No. 126 Rogue 126 Adventurer 0 Explorer 0 Win Type - Total 0 Types 0/0/0/0/0/0/0/0/0/0 Lore% 15 Gallery% 25 Achievement% 24 Wizard Run 0 Options --------- Layout 2 ASCII 0 Keyboard 0 Movement Numpad Keybinds 0 Fullscreen 1 Font 24/Smallcaps Map View 50x44 Zoom Use 0% Tactical HUD 1 Map Filters NONE Filters NONE Steam 1 RUN: bcbf0b50-bd0f-4a6c-b00e-edb8b3ddc9fa